Cogmind - Beta 9.6 *** ADVENTURER MODE // 2020.05.19 @ 21:18:23 Player: core_nxt Result: Self-destructed Performance ------------- Evolutions (2) 1000 Regions Visited (3) 600 Robots Destroyed (70) 350 Value Destroyed (2197) 2197 Prototype IDs (1) 20 Alien Tech Used (0) 0 Bonus (0) 0 TOTAL SCORE: 4167 Bonus ------- None Cogmind --------- Core Integrity 216/550 Matter 300/300 Energy 100/100 System Corruption 1% Temperature Cool (18) Movement Walking (210) Ox3 Location -8/Materials Parts ------- > --- POWER (1) -------- (None) > --- PROPULSION (3) --- Aluminum Leg Improved Flight Unit > --- UTILITY (5) ------ High-capacity Storage Unit Enhanced Optical Array Transport Network Coupler Salvage Targeting Computer Hacking Suite > --- WEAPON (2) ------- Katana > --- INVENTORY (12) --- Light Nuclear Core Improved Flight Unit Enhanced Optical Array Enhanced Optical Array Advanced Sensor Array Transport Network Coupler Transmission Jammer System Shield System Shield Shock Bomb Launcher Shock Bomb Launcher Katana Peak State ------------ > --- POWER ------------ Light Nuclear Core > --- PROPULSION ------- Aluminum Leg Carbon-fiber Leg Improved Flight Unit > --- UTILITY ---------- High-capacity Storage Unit Enhanced Optical Array Transport Network Coupler Salvage Targeting Computer Hacking Suite > --- WEAPON ----------- Minigun Katana > --- INVENTORY -------- Light Nuclear Core Improved Flight Unit Improved Flight Unit Improved Flight Unit Enhanced Optical Array Enhanced Optical Array Enhanced Optical Array Transport Network Coupler Transmission Jammer System Shield Katana [Rating: 30] Favorites ----------- Power Ion Engine Engine Ion Engine Power Core Light Nuclear Core Propulsion Aluminum Leg Leg Aluminum Leg Flight Unit Improved Flight Unit Utility Transport Network Coupler Device Cryofiber Web Storage High-capacity Storage Unit Processor Transport Network Coupler Hackware Hacking Suite Weapon Heavy Assault Rifle Energy Gun EM Shotgun Ballistic Gun Heavy Assault Rifle Launcher EMP Blaster Impact Weapon Great Maul Slashing Weapon Katana Build | -11 -10 -9 -8 ------- Run | Scr Mat Mat Mat Slots Evolved 4 | . . 2 2 Power . | . . . . Propulsion 1 | . . . 1 Utility 3 | . . 2 1 Weapon . | . . . . Parts Attached 41 | . 3 18 20 Power 5 | . 1 2 2 Engine 2 | . 1 1 . Core 3 | . . 1 2 Reactor . | . . . . Propulsion 17 | . 2 5 10 Treads . | . . . . Leg 12 | . 2 5 5 Wheel . | . . . . Hover . | . . . . Flight 5 | . . . 5 Utility 9 | . . 5 4 Device 3 | . . 2 1 Storage 1 | . . 1 . Processor 4 | . . 2 2 Hackware 1 | . . . 1 Protection . | . . . . Artifact . | . . . . Weapon 10 | . . 6 4 Energy Gun 3 | . . 3 . Energy Cannon . | . . . . Ballistic Gun 3 | . . 2 1 Ballistic Cannon . | . . . . Launcher 2 | . . 1 1 Special Weapon . | . . . . Impact Weapon 1 | . . . 1 Slashing Weapon 1 | . . . 1 Piercing Weapon . | . . . . Special Melee Weapon . | . . . . Unidentified Prototypes . | . . . . Parts Lost 20 | . 1 10 9 Power 4 | . 1 1 2 Propulsion 7 | . . 3 4 Utility 1 | . . . 1 Weapon 8 | . . 6 2 Highest Loss Streak 4 | . 1 2 4 Average Slot Usage (%) 87 | . 84 88 88 Engine 5 | . 13 6 1 Core 4 | . . 3 6 Leg 20 | . 28 20 16 Flight 3 | . . . 10 Device 4 | . . 8 2 Storage 10 | . 14 11 9 Processor 16 | . . 17 23 Hackware 1 | . . . 4 Energy Gun 6 | . 14 7 2 Ballistic Gun 7 | . 14 8 2 Launcher 1 | . . 1 2 Slashing Weapon 2 | . . . 6 Naked Turns . | . . . . Heaviest Build 45 | 12 12 45 45 Greatest Support 25 | 20 20 20 25 Greatest Overweight (x) 4 | . . 4 4 Average Overweight (x) . | . . . 1 Largest Inventory Capacity 12 | 6 6 12 12 Average Capacity 9 | 6 6 7 12 Most Carried 12 | 5 6 12 12 Average Carried 8 | 4 5 7 11 Final Capacity 12 | 6 6 12 12 Final Carried 12 | 2 6 11 12 Class Distribution -------------------- 44% | Mutant 37% | Scavenger-Mutant 17% | Hacker-Mutant Dominant Class ---------------- Mutant | -10/Materials Scavenger-Mutant | -9/Materials Hacker-Mutant | -8/Materials Resources | -11 -10 -9 -8 ----------- Run | Scr Mat Mat Mat Matter Collected 1062 | 200 26 481 355 Remotely . | . . . . Salvage Created 2963 | . 467 1450 1046 Parts 153 | . 21 77 55 Haulers Intercepted 4 | . 1 1 2 Recyclers Shooed 3 | . . 1 2 Parts Field Recycled . | . . . . Retrieved Matter . | . . . . Parts Self-Destructed . | . . . . Prevented . | . . . . Kills | -11 -10 -9 -8 ------- Run | Scr Mat Mat Mat Combat Hostiles Destroyed 55 | . 9 27 19 Melee 8 | . . . 8 Guns 33 | . 8 23 2 AOE 13 | . 1 3 9 Classes Destroyed 12 | . 4 4 4 Worker 1 | . . . 1 Builder 1 | . . . 1 Hauler 4 | . 1 1 2 Recycler 3 | . 1 . 2 Operator 4 | . . 3 1 Watcher 2 | . . 1 1 Swarmer 7 | . 3 . 4 Grunt 31 | . 6 16 9 Brawler 3 | . . 3 . Duelist 1 | . . . 1 Sentry 12 | . . 8 4 Hunter 1 | . . . 1 Best Kill Streak 6 | . 3 5 6 Combat Bots Only 5 | . 3 5 3 Max Kills in Single Turn 2 | . 1 2 2 Gunslinging . | . . . . Exploded 2 | . 1 1 2 Melee 1 | . . . 1 Uniques/NPCs Destroyed . | . . . . Combat | -11 -10 -9 -8 -------- Run | Scr Mat Mat Mat Damage Taken 2561 | . 326 1194 1041 Core 579 | . 96 149 334 Absorbed by Shields . | . . . . Core Remaining (%) 74 | 100 61 62 . Volleys Fired 184 | . 40 96 48 Largest 2 | . 2 2 1 Hottest 90 | . 60 90 56 Shots Fired 267 | . 80 139 48 Gun 240 | . 80 132 28 Cannon . | . . . . Launcher 27 | . . 7 20 Special . | . . . . Kinetic 125 | . 40 79 6 Thermal 27 | . . 5 22 Explosive 13 | . . . 13 Electromagnetic 102 | . 40 55 7 Robot Hit Streak 39 | . 33 39 38 Robot Miss Streak 3 | . 3 2 1 Penetration Max . | . . . . Secondary Targets 3 | . 2 1 . Max Gunslinging Chain 1 | . 1 1 . Shots Hit Robots 262 | . 70 119 73 Core Hits 123 | . 23 61 39 Critical Hits 2 | . . . 2 Critical Kills . | . . . . Critical Parts Destroyed 2 | . . . 2 Melee Attacks 32 | . . . 32 Impact . | . . . . Slashing 32 | . . . 32 Piercing . | . . . . Sneak Attacks 5 | . . . 5 Combat Hostiles . | . . . . Follow-up Attacks . | . . . . Damage Inflicted 5715 | . 836 1888 2991 Guns 2708 | . 719 1592 397 Cannons . | . . . . Explosions 1670 | . 117 296 1257 Melee 1337 | . . . 1337 Ramming . | . . . . Kinetic 1252 | . 248 899 105 Thermal 782 | . 117 188 477 Explosive 793 | . . . 793 Electromagnetic 1551 | . 471 801 279 Impact . | . . . . Slashing 1337 | . . . 1337 Piercing . | . . . . Highest Corruption 6 | . . 6 1 Average Corruption 3 | . . 4 1 Corruption Purged . | . . . . Effects 32 | . . 32 . Message Errors 9 | . . 9 . Matter Fused 7 | . . 7 . Heat Flow Errors 6 | . . 6 . Energy Discharges 4 | . . 4 . Parts Rejected 2 | . . 2 . Data Loss (minor) 1 | . . 1 . Targeting Errors 3 | . . 3 . Overload Shots . | . . . . Overflow Damage 226 | . . . 226 Projectiles . | . . . . Explosions 22 | . . . 22 Melee 204 | . . . 204 Knockbacks . | . . . . Impact . | . . . . Kinetic . | . . . . Secondary . | . . . . Self-Inflicted Damage 183 | . 25 126 32 Shots 15 | . 1 8 6 Rammed . | . . . . Targets Rammed . | . . . . Kicked . | . . . . Crushed . | . . . . Highest Temperature 174 | . 174 163 81 Average Temperature 46 | . 49 50 26 Received Heat Transfer 1185 | . 198 465 522 Siege Activations . | . . . . Robots Corrupted 1 | . . 1 . Combat Hostiles 1 | . . 1 . Parts Fried 6 | . 3 2 1 Impact Corruptions . | . . . . Robots Melted . | . . . . Combat Hostiles . | . . . . Parts Melted 3 | . . 1 2 Heat Transferred 1475 | . 150 385 940 Parts Sabotaged . | . . . . Parts Stolen . | . . . . Parts Stripped . | . . . . Power Chain Reactions 7 | . 2 3 2 Missiles Intercepted . | . . . . Alert | -11 -10 -9 -8 ------- Run | Scr Mat Mat Mat Peak Influence 356 | . 200 356 266 Average Influence 146 | . 86 182 134 Maximum Alert Level 1 | . 1 1 1 Low Security (%) 72 | 100 94 59 76 Level 1 27 | . 5 40 23 Level 2 . | . . . . Level 3 . | . . . . Level 4 . | . . . . Level 5 . | . . . . High Security . | . . . . Max Security . | . . . . Squads Dispatched 9 | . 1 5 3 Investigation 3 | . 1 1 1 Extermination . | . . . . Reinforcement 6 | . . 4 2 Assault . | . . . . Garrison . | . . . . Intercept . | . . . . Construction Impeded 3 | . . 2 1 Haulers Reinforced . | . . . . Stealth | -11 -10 -9 -8 --------- Run | Scr Mat Mat Mat Distress Signals 4 | . 1 2 1 Communications Jammed . | . . . . Distress Signals . | . . . . Times Spotted 87 | . 17 37 33 Peak Tracking Total 8 | . 5 5 8 Tactical Retreats 4 | . 1 2 1 Traps | -11 -10 -9 -8 ------- Run | Scr Mat Mat Mat Traps Triggered 4 | . 1 1 2 Indirectly . | . . . . Trap Hack Attempts . | . . . . Triggered . | . . . . Disarmed . | . . . . Reprogrammed . | . . . . Reused . | . . . . Traps Extracted . | . . . . Installed . | . . . . Triggered . | . . . . Machines | -11 -10 -9 -8 ---------- Run | Scr Mat Mat Mat Machines Disabled 4 | . . 3 1 Max in Single Turn 2 | . . 2 1 Machines Sabotaged . | . . . . Garrisons Compromised . | . . . . Overloaded Fab Kills . | . . . . Fab Network Shutdowns . | . . . . Hacking | -11 -10 -9 -8 --------- Run | Scr Mat Mat Mat Machines Accessed 15 | . 5 7 3 Terminals 13 | . 5 5 3 Fabricators . | . . . . Repair Stations . | . . . . Recycling Units . | . . . . Scanalyzers 2 | . . 2 . Garrison Access . | . . . . Total Hacks 48 | . 22 19 7 Successful 32 | . 17 9 6 Failed 16 | . 5 10 1 Catastrophic 1 | . . 1 . Database Lockouts . | . . . . Manual 39 | . 17 15 7 Terminals 44 | . 22 15 7 Fabricators . | . . . . Repair Stations . | . . . . Recycling Units . | . . . . Scanalyzers 4 | . . 4 . Garrison Access . | . . . . Terminal Hacks 11 | . 9 1 1 Part Schematic 2 | . 2 . . Level Access Points 2 | . 1 1 . Branch Access Points 1 | . 1 . . Terminal Index 2 | . 1 . 1 Repair Station Index 1 | . 1 . . Alert Level 1 | . 1 . . Hauler Manifests 1 | . 1 . . Registered Prototypes 1 | . 1 . . Fabricator Hacks . | . . . . Repair Station Hacks . | . . . . Recycling Unit Hacks . | . . . . Scanalyzer 3 | . . 3 . Insert Component 3 | . . 3 . Garrison Access Hacks . | . . . . Unauthorized Hacks 18 | . 8 5 5 Terminals 18 | . 8 5 5 Track 5 | . 2 1 2 Botnet 12 | . 5 4 3 Operators 1 | . 1 . . Fabricators . | . . . . Repair Stations . | . . . . Recycling Units . | . . . . Scanalyzers . | . . . . Garrison Access . | . . . . Data Cores Recovered 1 | . . 1 . Used . | . . . . Hacking Detections 13 | . 3 7 3 Full Trace Events . | . . . . Feedback Events . | . . . . Feedback Blocked . | . . . . Robot Schematics Acquired . | . . . . Robots Built . | . . . . Matter . | . . . . Time . | . . . . Total Robot Build Rating . | . . . . Part Schematics Acquired 2 | . 2 . . Parts Built . | . . . . Matter . | . . . . Time . | . . . . Total Part Build Rating . | . . . . Parts Repaired . | . . . . Time . | . . . . Parts Recycled . | . . . . Recycled Matter . | . . . . Retrieved Matter . | . . . . Retrieved Components . | . . . . Parts Scanalyzed . | . . . . Part Schematics Acquired . | . . . . Parts Damaged . | . . . . Bothacking | -11 -10 -9 -8 ------------ Run | Scr Mat Mat Mat Used RIF Installer . | . . . . Robots Hacked . | . . . . Non-combat . | . . . . Combat . | . . . . Robot Hacks Applied . | . . . . Relay Couplers Released . | . . . . Robots Rewired . | . . . . Allies Hacked . | . . . . Hacks Repelled . | . . . . Allies | -11 -10 -9 -8 -------- Run | Scr Mat Mat Mat Total Allies . | . . . . Largest Group . | . . . . Highest-Rated Group . | . . . . Highest-Rated Ally . | . . . . Total Orders . | . . . . Ally Attacks . | . . . . Total Damage . | . . . . Kills . | . . . . Allies Corrupted . | . . . . Allies Melted . | . . . . Intel | -11 -10 -9 -8 ------- Run | Scr Mat Mat Mat Robot Analysis Total . | . . . . Derelict Logs Recovered . | . . . . Drone Launches . | . . . . Drone Recoveries . | . . . . Exploration | -11 -10 -9 -8 ------------- Run | Scr Mat Mat Mat Turns Passed 3330 | 2 590 1424 1314 Spaces Moved 1623 | 1 370 728 524 Core . | . . . . Treads . | . . . . Legs 1585 | 1 370 728 486 Wheels . | . . . . Hover . | . . . . Flight 38 | . . . 38 Fastest Speed 120 | 120 120 120 150 Average Speed 140 | 120 120 138 156 Slowest Speed 240 | 120 120 240 240 Overloaded Moves . | . . . . Propulsion Burnouts . | . . . . Robots Hopped . | . . . . Cave-ins Triggered . | . . . . Exploration Rate (%) 47 | 2 71 74 41 Regions Visited 3 Branch Regions . Pre-discovered Areas . | . . . . Known Exits Taken 2 | . 1 1 . Unknown Exits Taken 1 | 1 . . . Scrap Searched . | . . . . Spaces Dug . | . . . . Terrain Destroyed 55 | . 8 12 35 Melee . | . . . . Projectile . | . . . . AOE 55 | . 8 12 35 Actions | -11 -10 -9 -8 --------- Run | Scr Mat Mat Mat Total 2377 | 4 446 1001 926 Wait 443 | . 22 146 275 Move 1620 | . 369 727 524 Hop . | . . . . Pick Up 29 | . 7 10 12 Fast Attach 23 | . 1 12 10 Attach 11 | . . 4 7 Detach 2 | . . . 2 Swap 7 | . 2 2 3 Drop 26 | 4 5 4 13 Fire 184 | . 40 96 48 Melee 32 | . . . 32 Ram . | . . . . Kick . | . . . . Crush . | . . . . Escape Stasis . | . . . . Rewire . | . . . . Trap . | . . . . Miscellaneous . | . . . . Route ------- -11/Scrapyard -10/Materials (discovered 4 exits: *Mat x3 / *Min) -9/Materials (discovered 4 exits: *Mat x3 / [*Min]) -8/Materials (discovered 1 exit: [*Fac]) History --------- Turn | Location | Event 3 | -11/Scrapyard | Discovered new exit (range 0) 3 | -11/Scrapyard | Entered Materials 83 | -10/Materials | Identified exit to Mines 109 | -10/Materials | Identified exit to Materials 312 | -10/Materials | Build established: Mutant 593 | -10/Materials | Entered another Materials area 593 | -9/Materials | Evolved 2 slots: Utility x2 907 | -9/Materials | Discovered new exit (range 18) 1065 | -9/Materials | Discovered new exit (range 7) 1409 | -9/Materials | Build established: Scavenger-Mutant 1462 | -9/Materials | Discovered new exit (range 20) 1951 | -9/Materials | Discovered new exit (range 7) 1995 | -9/Materials | Identified exit to Materials 2017 | -9/Materials | Entered another Materials area 2017 | -8/Materials | Evolved 2 slots: Propulsion x1, Utility x1 2217 | -8/Materials | Lost 4 parts (2n1u1w) 2734 | -8/Materials | Build established: Mutant 2781 | -8/Materials | Discovered new exit (range 17) 3036 | -8/Materials | Build established: Hacker-Mutant 3298 | -8/Materials | Core integrity fell below 50% 3331 | -8/Materials | Self-destructed Last Messages --------------- 03272_ Y-45 Defender destroyed. 03275_ Acquired 57 matter. 03291_ Carbon-fiber Leg destroyed. 03293_ K-01 Serf collects debris. 03297_ S-10 Pest destroyed. 03300_ K-01 Serf collects debris. 03305_ Triggered Alarm Trap. 03305_ An alarm sounds. 03305_ ALERT: Alarm triggered, dispatching investigation squad. 03309_ U-05 Engineer lays Concrete. 03316_ Lgt. Armor Plating severed. 03321_ Y-45 Defender destroyed. 03322_ K-01 Serf collects debris. 03326_ C-30 ARC bursts open, deploying its payload. 03326_ G-47 Trooper unfolds itself. 03326_ H-55 Commando suffers critical hit. 03326_ Destroyed Assault Rifle. 03330_ Penetrated by Slug. 03331_ Minigun destroyed. 03331_ Lgt. Nuclear Core destroyed. Map ----- +----------------------------------------------------+ | ??????????????????????? ???? | | ??????????????????????? ???? | | ??????????????????????? ????? | | ??????????????????????# a ????? | | ??????????????????????# ????? | | ??????????????????????# #????? | | ??????????????????????# #????? | | a?????????????????????# #????? | | ??????????????????????# #????? | | ??????????????????????# #????? | | ??????????????????????+ +????? | | ???????????#??????????# #????? | | ???????????# ####### #????? | | ???????????# [ #????? | | ???????????# ! = #????? | | ???????????# ####### #????? | | ??????????????????????# #????? | | ??????????????????????#! #????? | | ??????????????????????# !#????? | | ??????????????????????#=!#????? | | ??????????????????????# *###### | | ??????????????????????#= # # | | ?????????????#????????#% # # | | ?????????????# ??????#gg# # | | ??????"""????? """????# g#! # | | ??####"T"##### """""??# u@% # | | ? # """"" #gh#! # | | ? # """"" g%=# # | | ?? !!! # """"" a# ## # | | ??# !!! / """"" # ## # | | ??# !! """"" ?# ####### | | ??# % # ??# #?????? | | ??+ ######???# #?????? | | ??# ?????#!#?????? | | ??#